fUST/lending_fUST_20250723
["ID","MTS","AMOUNT","RATE_DAILY","PERIOD"]
[374157407,1753231835695,-460.0,0.0001734,2]
[374157409,1753231835704,-460.0,0.0001734,2]
[374157411,1753231835713,-460.0,0.0001734,2]
[374157413,1753231835722,-460.0,0.0001734,2]
[374157415,1753231835731,-929.9,0.0001734,2]
[374157417,1753231835740,-460.0,0.0001734,2]
[374157419,1753231835750,-460.0,0.0001734,2]
[374157421,1753231835759,-460.0,0.0001734,2]
[374157423,1753231835768,-460.0,0.0001734,2]
[374157425,1753231835777,-460.0,0.0001734,2]
[374157427,1753231835787,-460.0,0.0001734,2]
[374157428,1753231835796,-460.0,0.0001734,2]
[374157430,1753231835805,-500.0,0.0001734,2]
[374157432,1753231835814,-460.0,0.0001734,2]
[374157434,1753231835823,-460.0,0.0001734,2]
[374157436,1753231835832,-460.0,0.0001734,2]
[374157438,1753231835842,-460.0,0.0001734,2]
[374157440,1753231835851,-460.0,0.0001734,2]
[374157442,1753231835860,-460.0,0.0001734,2]
[374157444,1753231835869,-416.38055693,0.0001734,2]
[374157450,1753231835913,-43.61944307,0.0001734,2]
[374157452,1753231835922,-542.30073855,0.0001734,2]
[374157454,1753231835931,-460.0,0.0001734,2]
[374157456,1753231835941,-461.44777072,0.0001734,2]
[374157458,1753231835950,-460.0,0.0001734,2]
[374157459,1753231835960,-460.0,0.0001734,2]
[374157461,1753231835970,-460.0,0.0001734,2]
[374157463,1753231835979,-460.0,0.0001734,2]
[374157465,1753231835988,-460.0,0.0001734,2]
[374157467,1753231835997,-460.0,0.0001734,2]
[374157469,1753231836007,-460.0,0.0001734,2]
[374157471,1753231836016,-8.45984033,0.0001734,2]
[374157474,1753231836028,-451.54015967,0.0001734,2]
[374157475,1753231836037,-460.0,0.0001734,2]
[374157477,1753231836046,-48.51567187,0.0001734,2]
[374157480,1753231836058,-265.22182124,0.0001734,2]
[374157482,1753231836069,-186.26250689,0.0001734,2]
[374157484,1753231836079,-460.0,0.0001734,2]
[374157486,1753231836088,-161.15789621,0.0001734,2]
[374157679,1753231837877,-804.37,0.00016787,2]
[374157681,1753231837887,-804.37,0.00017061,2]
[374157684,1753231837897,-804.37,0.00017335,2]
[374157686,1753231837907,-460.0,0.00017339,2]
[374157687,1753231837916,-460.0,0.00017339,2]
[374157689,1753231837925,-460.0,0.00017339,2]
[374157691,1753231837936,-460.0,0.00017339,2]
[374157693,1753231837946,-460.0,0.00017339,2]
[374157695,1753231837955,-298.84210379,0.0001734,2]
[374157697,1753231837964,-460.0,0.0001734,2]
[374157700,1753231837974,-460.0,0.0001734,2]
[374157701,1753231837983,-191.67723831,0.0001734,2]
[374157704,1753231837999,-1191.70276169,0.0001734,2]
[374157706,1753231838008,-460.0,0.0001734,2]
[374157708,1753231838018,-460.0,0.0001734,2]
[374157710,1753231838028,-460.0,0.0001734,2]
[374157712,1753231838037,-359.13871907,0.0001734,2]
[374157727,1753231838132,-100.86128093,0.0001734,2]
[374157729,1753231838142,-460.0,0.0001734,2]
[374157731,1753231838160,-460.0,0.0001734,2]
[374157733,1753231838175,-460.0,0.0001734,2]
[374157735,1753231838184,-460.0,0.0001734,2]
[374157737,1753231838195,-460.0,0.0001734,2]
[374157749,1753231838295,-460.0,0.0001734,2]
[374157751,1753231838306,-460.0,0.0001734,2]
[374157753,1753231838316,-460.0,0.0001734,2]
[374157755,1753231838326,-460.0,0.0001734,2]
[374157757,1753231838335,-460.25157487,0.0001734,2]
[374157759,1753231838344,-460.0,0.0001734,2]
[374157761,1753231838353,-460.0,0.0001734,2]
[374157763,1753231838362,-460.0,0.0001734,2]
[374157764,1753231838371,-460.0,0.0001734,2]
[374157766,1753231838381,-460.79978135,0.0001734,2]
[374157768,1753231838390,-460.0,0.0001734,2]
[374157770,1753231838399,-500.0,0.00017373,2]
[374157771,1753231838408,-485.51,0.00017609,2]
[374157772,1753231838418,-804.37,0.00017609,2]
[374157773,1753231838427,-1899.66,0.0001761,2]
[374157774,1753231838438,-746.09,0.0001761,2]
[374157775,1753231838447,-460.0,0.0001761,2]
[374157776,1753231838456,-460.0,0.0001761,2]
[374157777,1753231838467,-460.0,0.0001761,2]
[374157778,1753231838476,-460.0,0.0001761,2]
[374157779,1753231838486,-946.93,0.0001761,2]
[374157780,1753231838495,-750.57,0.0001761,2]
[374157781,1753231838504,-997.35,0.00017611,2]
[374157782,1753231838514,-460.0,0.00017613,2]
[374157783,1753231838523,-460.0,0.00017613,2]
[374157784,1753231838532,-460.0,0.00017613,2]
[374157785,1753231838541,-460.0,0.00017613,2]
[374157786,1753231838551,-460.0,0.00017613,2]
[374157787,1753231838560,-460.0,0.00017613,2]
[374157788,1753231838569,-460.0,0.00017613,2]
[374157789,1753231838578,-460.0,0.00017613,2]
[374157790,1753231838587,-460.0,0.00017613,2]
[374157791,1753231838597,-460.0,0.00017613,2]
[374157792,1753231838606,-460.0,0.00017613,2]
[374157793,1753231838616,-460.0,0.00017613,2]
[374157795,1753231838625,-460.0,0.00017613,2]
[374157797,1753231838635,-460.0,0.00017613,2]
[374157799,1753231838644,-460.0,0.00017613,2]
[374157801,1753231838654,-460.0,0.00017613,2]
[374157803,1753231838664,-240.14415653,0.00017613,2]
[374157805,1753231838674,-460.0,0.00017613,2]
[374157807,1753231838683,-460.0,0.00017613,2]
[374157809,1753231838695,-460.0,0.00017613,2]
[374157811,1753231838704,-460.0,0.00017613,2]
[374157813,1753231838713,-880.33,0.00017613,2]
[374157815,1753231838723,-460.0,0.00017613,2]
[374157816,1753231838733,-460.0,0.00017613,2]
[374157818,1753231838742,-460.0,0.00017613,2]
[374157820,1753231838751,-460.0,0.00017613,2]
[374157822,1753231838760,-460.0,0.00017613,2]
[374157824,1753231838770,-460.0,0.00017613,2]
[374157826,1753231838779,-460.0,0.00017613,2]
[374157828,1753231838788,-581.37,0.00017613,2]
[374157830,1753231838798,-460.0,0.00017613,2]
[374157832,1753231838807,-460.0,0.00017613,2]
[374157834,1753231838817,-460.0,0.00017613,2]
[374157836,1753231838827,-460.0,0.00017613,2]
[374157838,1753231838836,-460.0,0.00017613,2]
[374157840,1753231838845,-460.0,0.00017613,2]
[374157842,1753231838855,-460.0,0.00017613,2]
[374157844,1753231838864,-460.0,0.00017613,2]
[374157846,1753231838873,-460.0,0.00017613,2]
[374157848,1753231838883,-460.0,0.00017613,2]
[374157850,1753231838893,-460.0,0.00017613,2]
[374157852,1753231838902,-460.0,0.00017613,2]
[374157854,1753231838911,-460.0,0.00017613,2]
[374157856,1753231838921,-460.0,0.00017613,2]
[374157858,1753231838930,-460.0,0.00017613,2]
[374157859,1753231838940,-364.27130797,0.00017613,2]
[374157861,1753231838949,-460.0,0.00017613,2]
[374157863,1753231838959,-454.70602971,0.00017613,2]
[374158268,1753231842949,-460.0,0.00016787,2]
[374158270,1753231842959,-460.0,0.00017339,2]
[374158272,1753231842967,-460.0,0.00017339,2]
[374158274,1753231842979,-460.0,0.00017339,2]
[374158275,1753231842989,-460.0,0.00017339,2]
[374158277,1753231842998,-460.0,0.0001734,2]
[374158279,1753231843008,-460.0,0.0001734,2]
[374158280,1753231843017,-5.29397029,0.00017613,2]
[374158281,1753231843026,-460.0,0.00017613,2]
[374158282,1753231843035,-460.0,0.00017613,2]
[374158283,1753231843043,-460.0,0.00017613,2]
[374158284,1753231843053,-460.0,0.00017613,2]
[374158285,1753231843062,-240.0,0.00017613,2]
[374158286,1753231843071,-750.57,0.00017613,2]
[374158287,1753231843080,-460.0,0.00017613,2]
[374158288,1753231843089,-460.0,0.00017613,2]
[374158289,1753231843099,-460.0,0.00017613,2]
[374158290,1753231843108,-460.0,0.00017613,2]
[374158291,1753231843117,-460.0,0.00017613,2]
[374158292,1753231843126,-460.0,0.00017613,2]
[374158293,1753231843135,-460.0,0.00017613,2]
[374158294,1753231843144,-460.0,0.00017613,2]
[374158295,1753231843153,-460.0,0.00017613,2]
[374158296,1753231843162,-460.0,0.00017613,2]
[374158297,1753231843172,-460.0,0.00017613,2]
[374158298,1753231843182,-1109.55,0.00017614,2]
[374158299,1753231843192,-165.56,0.00017614,2]
[374158300,1753231843202,-460.0,0.00017614,2]
[374158301,1753231843211,-460.0,0.00017614,2]
[374158303,1753231843220,-460.0,0.00017614,2]
[374158304,1753231843229,-597.34,0.00017614,2]
[374158305,1753231843239,-460.0,0.00017614,2]
[374158306,1753231843248,-460.0,0.00017614,2]
[374158307,1753231843257,-460.0,0.00017614,2]
[374158308,1753231843266,-460.0,0.00017614,2]
[374158309,1753231843275,-460.0,0.00017614,2]
[374158310,1753231843284,-460.0,0.00017614,2]
[374158311,1753231843293,-460.0,0.00017614,2]
[374158312,1753231843303,-460.0,0.00017614,2]
[374158313,1753231843312,-460.0,0.00017614,2]
[374158314,1753231843322,-460.0,0.00017614,2]
[374158315,1753231843331,-460.0,0.00017614,2]
[374158316,1753231843340,-929.9,0.00017614,2]
[374158317,1753231843349,-460.0,0.00017614,2]
[374158318,1753231843358,-460.0,0.00017614,2]
[374158319,1753231843368,-460.0,0.00017614,2]
[374158320,1753231843377,-467.41459426,0.00017614,2]
[374158321,1753231843386,-460.0,0.00017614,2]
[374158322,1753231843395,-460.0,0.00017614,2]
[374158323,1753231843404,-460.0,0.00017614,2]
[374158324,1753231843413,-460.0,0.00017614,2]
[374158325,1753231843422,-460.0,0.00017614,2]
[374158326,1753231843432,-460.0,0.00017614,2]
[374158327,1753231843443,-500.0,0.00017614,2]
[374158328,1753231843453,-460.0,0.00017614,2]
[374158329,1753231843462,-460.0,0.00017614,2]
[374158330,1753231843471,-1383.38,0.00017614,2]
[374158332,1753231843481,-460.0,0.00017614,2]
[374158333,1753231843490,-460.0,0.00017614,2]
[374158334,1753231843499,-372.92002648,0.00017614,2]
[374158335,1753231843509,-460.0,0.00017614,2]
[374158336,1753231843518,-460.0,0.00017614,2]
[374158337,1753231843539,-460.0,0.00017614,2]
[374158338,1753231843549,-460.0,0.00017614,2]
[374158339,1753231843559,-460.0,0.00017614,2]
[374158340,1753231843568,-460.0,0.00017614,2]
[374158341,1753231843578,-460.0,0.00017614,2]
[374158342,1753231843587,-460.0,0.00017614,2]
[374158343,1753231843598,-460.0,0.00017614,2]
[374158344,1753231843607,-460.0,0.00017614,2]
[374158345,1753231843617,-485.51,0.00017883,2]
[374158346,1753231843627,-804.37,0.00017883,2]
[374158347,1753231843637,-1899.66,0.00017884,2]
[374158348,1753231843647,-746.09,0.00017884,2]
[374158349,1753231843657,-460.0,0.00017884,2]
[374158350,1753231843667,-555.4,0.00017884,2]
[374158351,1753231843676,-460.0,0.00017884,2]
[374158352,1753231843686,-460.0,0.00017884,2]
[374158354,1753231843698,-946.93,0.00017884,2]
[374158356,1753231843708,-750.57,0.00017885,2]
[374158358,1753231843717,-997.35,0.00017885,2]
[374158360,1753231843727,-460.0,0.00017887,2]
[374158361,1753231843736,-308.59290708,0.00017887,2]
[374158363,1753231843746,-460.0,0.00017887,2]
[374158364,1753231843755,-460.0,0.00017887,2]
[374158366,1753231843764,-460.0,0.00017887,2]
[374158368,1753231843774,-460.0,0.00017887,2]
[374158370,1753231843785,-460.0,0.00017887,2]
[374158372,1753231843794,-460.0,0.00017887,2]
[374158374,1753231843804,-377.95,0.00017887,2]
[374158376,1753231843813,-460.0,0.00017887,2]
[374158378,1753231843822,-460.0,0.00017887,2]
[374158380,1753231843832,-460.0,0.00017887,2]
[374158382,1753231843841,-460.0,0.00017887,2]
[374158384,1753231843850,-460.0,0.00017887,2]
[374158386,1753231843860,-880.33,0.00017887,2]
[374158388,1753231843869,-227.65929064,0.00017887,2]
[374158390,1753231843878,-460.0,0.00017887,2]
[374158392,1753231843887,-460.0,0.00017887,2]
[374158394,1753231843897,-460.0,0.00017887,2]
[374158395,1753231843906,-460.0,0.00017887,2]
[374158396,1753231843916,-581.37,0.00017887,2]
[374158398,1753231843925,-460.0,0.00017887,2]
[374158400,1753231843935,-460.0,0.00017887,2]
[374158402,1753231843947,-460.0,0.00017887,2]
[374158404,1753231843957,-460.0,0.00017887,2]
[374158406,1753231843966,-460.0,0.00017887,2]
[374158408,1753231843976,-455.36,0.00017887,2]
[374158410,1753231843987,-460.0,0.00017887,2]
[374158412,1753231843996,-460.0,0.00017887,2]
[374158414,1753231844006,-460.0,0.00017887,2]
[374158417,1753231844015,-460.0,0.00017887,2]
[374158419,1753231844025,-750.57,0.00017887,2]
[374158421,1753231844034,-460.0,0.00017887,2]
[374158423,1753231844043,-460.0,0.00017887,2]
[374158424,1753231844052,-460.0,0.00017887,2]
[374158426,1753231844061,-1109.55,0.00017888,2]
[374158428,1753231844071,-460.0,0.00017888,2]
[374158430,1753231844080,-460.0,0.00017888,2]
[374158447,1753231844090,-460.0,0.00017888,2]
[374158449,1753231844239,-597.34,0.00017888,2]
[374158451,1753231844249,-460.0,0.00017888,2]
[374158453,1753231844258,-460.0,0.00017888,2]
[374158455,1753231844267,-460.0,0.00017888,2]
[374158457,1753231844276,-929.9,0.00017888,2]
[374158459,1753231844286,-460.0,0.00017888,2]
[374158461,1753231844295,-1383.38,0.00017888,2]
[374158463,1753231844304,-460.0,0.00017888,2]
[374158465,1753231844313,-460.0,0.00017888,2]
[374158467,1753231844323,-1383.09816532,0.000179,2]
[374158469,1753231844332,-485.51,0.00018157,2]
[374158471,1753231844341,-804.37,0.00018157,2]
[374158473,1753231844350,-1899.66,0.00018158,2]
[374158474,1753231844359,-746.09,0.00018158,2]
[374158476,1753231844368,-301.82657253,0.00018158,2]
[374158478,1753231844378,-460.0,0.00018158,2]
[374158480,1753231844387,-460.0,0.00018158,2]
[374158482,1753231844396,-946.93,0.00018158,2]
[374158484,1753231844406,-750.57,0.00018159,2]
[374158486,1753231844415,-997.35,0.00018159,2]
[374158488,1753231844424,-460.0,0.00018161,2]
[374158490,1753231844433,-460.0,0.00018161,2]
[374158492,1753231844444,-460.0,0.00018161,2]
[374158494,1753231844453,-196.94,0.00018161,2]
[374158496,1753231844462,-460.0,0.00018161,2]
[374158498,1753231844471,-460.0,0.00018161,2]
[374158500,1753231844481,-460.0,0.00018161,2]
[374158502,1753231844492,-203.92,0.00018161,2]
[374158504,1753231844501,-460.0,0.00018161,2]
[374158506,1753231844510,-880.33,0.00018161,2]
[374158508,1753231844520,-460.0,0.00018161,2]
[374158510,1753231844529,-460.0,0.00018161,2]
[374158512,1753231844538,-460.0,0.00018161,2]
[374158514,1753231844547,-460.0,0.00018161,2]
[374158516,1753231844558,-581.37,0.00018161,2]
[374158518,1753231844568,-207.69,0.00018161,2]
[374158520,1753231844578,-578.37443457,0.00018161,2]
[374158522,1753231844587,-460.92,0.00018161,2]
[374158524,1753231844597,-460.0,0.00018161,2]
[374158526,1753231844606,-460.0,0.00018161,2]
[374158528,1753231844616,-460.0,0.00018161,2]
[374158530,1753231844626,-460.0,0.00018161,2]
[374158532,1753231844636,-460.0,0.00018161,2]
[374158534,1753231844646,-460.0,0.00018161,2]
[374158536,1753231844656,-460.0,0.00018161,2]
[374158538,1753231844666,-460.0,0.00018161,2]
[374158540,1753231844675,-1109.55,0.00018162,2]
[374158541,1753231844685,-460.0,0.00018162,2]
[374158543,1753231844695,-460.0,0.00018162,2]
[374158545,1753231844705,-460.0,0.00018162,2]
[374158547,1753231844714,-597.34,0.00018162,2]
[374158549,1753231844724,-460.0,0.00018162,2]
[374158551,1753231844733,-460.0,0.00018162,2]
[374158553,1753231844742,-460.0,0.00018162,2]
[374158555,1753231844751,-929.9,0.00018162,2]
[374158557,1753231844760,-460.0,0.00018162,2]
[374158559,1753231844770,-1383.38,0.00018162,2]
[374158561,1753231844779,-460.0,0.00018162,2]
[374158562,1753231844788,-750.57,0.00018175,2]
[374158564,1753231844798,-1383.09816527,0.00018176,2]
[374158566,1753231844807,-1528.68168334,0.00018334,2]
[374158568,1753231844817,-420.0,0.00018338,2]
[374158570,1753231844827,-300.0,0.00018338,2]
[374158572,1753231844836,-1456.0,0.00018429,2]
[374158574,1753231844845,-485.51,0.00018431,2]
[374158576,1753231844854,-804.37,0.00018431,2]
[374158578,1753231844864,-1899.66,0.00018432,2]
[374158580,1753231844873,-746.09,0.00018432,2]
[374158582,1753231844882,-460.0,0.00018432,2]
[374158584,1753231844892,-460.0,0.00018432,2]
[374158586,1753231844902,-946.93,0.00018432,2]
[374158588,1753231844911,-997.35,0.00018433,2]
[374158589,1753231844920,-460.0,0.00018435,2]
[374158591,1753231844929,-460.0,0.00018435,2]
[374158593,1753231844939,-548.05594916,0.00018435,2]
[374158595,1753231844948,-460.0,0.00018435,2]
[374158597,1753231844958,-460.0,0.00018435,2]
[374158599,1753231844968,-880.33,0.00018435,2]
[374158601,1753231844977,-460.0,0.00018435,2]
[374158603,1753231844987,-460.0,0.00018435,2]
[374158605,1753231844996,-460.0,0.00018435,2]
[374158607,1753231845005,-581.37,0.00018435,2]
[374158609,1753231845014,-460.0,0.00018435,2]
[374158611,1753231845024,-460.0,0.00018435,2]
[374158613,1753231845033,-460.0,0.00018435,2]
[374158615,1753231845042,-460.0,0.00018435,2]
[374158616,1753231845052,-460.0,0.00018435,2]
[374158618,1753231845061,-750.57,0.00018435,2]
[374158620,1753231845070,-460.0,0.00018435,2]
[374158622,1753231845079,-460.0,0.00018435,2]
[374158624,1753231845089,-449.57257127,0.00018435,2]
[374158627,1753231845107,-10.42742873,0.00018435,2]
[374158629,1753231845116,-861.29849457,0.00018436,2]
[374158631,1753231845129,-248.25150543,0.00018436,2]
[374158633,1753231845139,-460.0,0.00018436,2]
[374158635,1753231845151,-152.41559762,0.00018436,2]
[374158637,1753231845160,-597.34,0.00018436,2]
[374158639,1753231845170,-460.0,0.00018436,2]
[374158642,1753231845179,-929.9,0.00018436,2]
[374158644,1753231845188,-460.0,0.00018436,2]
[374158646,1753231845198,-1383.38,0.00018436,2]
[374158648,1753231845207,-1383.09816527,0.00018452,2]
[374158650,1753231845217,-500.0,0.00018553,2]
[374158651,1753231845227,-485.51,0.00018705,2]
[374158654,1753231845237,-804.37,0.00018705,2]
[374158656,1753231845249,-1899.66,0.00018706,2]
[374158659,1753231845259,-746.09,0.00018706,2]
[374158662,1753231845269,-460.0,0.00018706,2]
[374158665,1753231845278,-460.0,0.00018706,2]
[374158667,1753231845287,-540.21806225,0.00018706,2]
[374158726,1753231845941,-460.0,0.00017339,2]
[374158727,1753231845951,-406.71193775,0.00018706,2]
[374158728,1753231845961,-750.57,0.00018707,2]
[374158729,1753231845970,-997.35,0.00018707,2]
[374158730,1753231845979,-500.0,0.00018709,2]
[374158731,1753231845989,-460.0,0.00018709,2]
[374158732,1753231845998,-880.33,0.00018709,2]
[374158733,1753231846008,-460.0,0.00018709,2]
[374158734,1753231846017,-460.0,0.00018709,2]
[374158735,1753231846026,-460.0,0.00018709,2]
[374158736,1753231846035,-581.37,0.00018709,2]
[374158737,1753231846044,-460.0,0.00018709,2]
[374158738,1753231846053,-317.02168707,0.00018709,2]
[374158739,1753231846065,-142.97831293,0.00018709,2]
[374158740,1753231846074,-460.0,0.00018709,2]
[374158741,1753231846084,-460.0,0.00018709,2]
[374158742,1753231846093,-750.57,0.00018709,2]
[374158743,1753231846102,-460.0,0.00018709,2]
[374158744,1753231846111,-460.0,0.00018709,2]
[374158745,1753231846121,-1109.55,0.0001871,2]
[374158746,1753231846131,-460.0,0.0001871,2]
[374158747,1753231846140,-597.34,0.0001871,2]
[374158748,1753231846151,-460.0,0.0001871,2]
[374158749,1753231846161,-929.9,0.0001871,2]
[374158750,1753231846171,-402.91,0.0001871,2]
[374158751,1753231846180,-1383.38,0.0001871,2]
[374158752,1753231846189,-1383.09816527,0.00018728,2]
[374158753,1753231846201,-3494.94480979,0.0001888,2]
[374158754,1753231846211,-1599.49759919,0.000189,2]
[374158755,1753231846220,-485.51,0.00018979,2]
[374158756,1753231846230,-804.37,0.00018979,2]
[374158757,1753231846239,-1899.66,0.0001898,2]
[374158758,1753231846249,-504.166018,0.0001898,2]
[374158759,1753231846261,-241.923982,0.0001898,2]
[374158760,1753231846270,-460.0,0.0001898,2]
[374158761,1753231846279,-460.0,0.0001898,2]
[374158762,1753231846288,-946.93,0.0001898,2]
[374158763,1753231846298,-750.57,0.0001898,2]
[374158764,1753231846307,-997.35,0.00018981,2]
[374158765,1753231846317,-329.47684678,0.00018983,2]
[374158766,1753231846326,-880.33,0.00018983,2]
[374158767,1753231846335,-460.0,0.00018983,2]
[374158768,1753231846345,-460.0,0.00018983,2]
[374158769,1753231846354,-13.41457522,0.00018983,2]
[374159468,1753232154706,24900.0,0.00016244,2]
[374159470,1753232466742,639.600238,0.00013699,2]
[374159471,1753232605664,720.96690135,0.00016687,2]
[374159473,1753232858396,161.3132945,0.00016121,2]
[374159522,1753233032118,-1200.0,0.00016784,2]
[374159524,1753233032127,-696.53778143,0.00016785,2]
[374159526,1753233032144,-503.46221857,0.00016785,2]
[374159528,1753233032153,-300.0,0.00016785,2]
[374159531,1753233032163,-588.80911844,0.00016786,2]
[374159532,1753233032172,-371.32866299,0.00016786,2]
[374159535,1753233032189,-88.67133701,0.00016786,2]
[374159537,1753233032200,-460.0,0.00016786,2]
[374159539,1753233032210,-460.0,0.00016786,2]
[374159541,1753233032218,-460.0,0.00016786,2]
[374159543,1753233032227,-460.0,0.00016786,2]
[374159545,1753233032236,-142.29314537,0.00016786,2]
[374159547,1753233032247,-317.70685463,0.00016786,2]
[374159549,1753233032256,-460.0,0.00016786,2]
[374159551,1753233032266,-460.0,0.00016786,2]
[374159553,1753233032275,-857.45,0.00016786,2]
[374159555,1753233032284,-460.0,0.00016786,2]
[374159557,1753233032293,-460.0,0.00016786,2]
[374159558,1753233032303,-460.79701118,0.00016786,2]
[374159560,1753233032312,-460.0,0.00016786,2]
[374159562,1753233032321,-460.0,0.00016786,2]
[374159564,1753233032330,-549.11941092,0.00016786,2]
[374159566,1753233032339,-460.0,0.00016786,2]
[374159568,1753233032348,-1007.79,0.00016786,2]
[374159570,1753233032358,-460.0,0.00016786,2]
[374159572,1753233032367,-460.0,0.00016786,2]
[374159574,1753233032377,-460.0,0.00016786,2]
[374159576,1753233032386,-460.0,0.00016786,2]
[374159578,1753233032395,-460.0,0.00016786,2]
[374159580,1753233032404,-460.0,0.00016786,2]
[374159582,1753233032414,-1306.39,0.00016786,2]
[374159584,1753233032423,-460.0,0.00016786,2]
[374159588,1753233032443,-1097.55,0.00016786,2]
[374159590,1753233032454,-460.0,0.00016786,2]
[374159592,1753233032464,-460.0,0.00016786,2]
[374159594,1753233032474,-396.78672327,0.00016786,2]
[374160006,1753233038031,-63.21327673,0.00016786,2]
[374160007,1753233038041,-460.0,0.00016786,2]
[374160008,1753233038051,-460.0,0.00016786,2]
[374160009,1753233038061,-460.0,0.00016786,2]
[374160010,1753233038070,-460.0,0.00016786,2]
[374160011,1753233038079,-460.0,0.00016786,2]
[374160012,1753233038089,-152.40367054,0.00016786,2]
[374160013,1753233038099,-460.0,0.00016786,2]
[374160014,1753233038108,-569.11465255,0.00016786,2]
[374160015,1753233038118,-460.0,0.00016786,2]
[374160016,1753233038127,-460.0,0.00016786,2]
[374160017,1753233038136,-460.0,0.00016786,2]
[374160018,1753233038145,-460.0,0.00016787,2]
[374160019,1753233038155,-460.0,0.00016787,2]
[374160020,1753233038164,-460.0,0.00016787,2]
[374160021,1753233038173,-460.0,0.00016787,2]
[374160022,1753233038182,-460.0,0.00016787,2]
[374160023,1753233038192,-550.42758763,0.00016787,2]
[374160024,1753233038201,-460.0,0.00016787,2]
[374160025,1753233038211,-460.0,0.00016787,2]
[374160026,1753233038220,-460.0,0.00016787,2]
[374160027,1753233038229,-443.68740829,0.00016787,2]
[374160028,1753233038238,-461.34056756,0.00016787,2]
[374160029,1753233038247,-460.0,0.00016787,2]
[374160030,1753233038257,-460.0,0.00016787,2]
[374160031,1753233038266,-460.0,0.00016787,2]
[374160032,1753233038278,-460.0,0.00016787,2]
[374160033,1753233038287,-460.0,0.00016787,2]
[374160034,1753233038296,-460.0,0.00016787,2]
[374160035,1753233038306,-460.0,0.00016787,2]
[374160036,1753233038315,-460.0,0.00016787,2]
[374160037,1753233038324,-460.0,0.00016787,2]
[374160038,1753233038333,-460.0,0.00016787,2]
[374160039,1753233038342,-460.0,0.00016787,2]
[374160040,1753233038352,-460.0,0.00016787,2]
[374160041,1753233038361,-460.0,0.00016787,2]
[374160042,1753233038370,-460.0,0.00016787,2]
[374160043,1753233038379,-460.0,0.00016787,2]
[374160044,1753233038388,-460.0,0.00016787,2]
[374160045,1753233038398,-460.0,0.00016787,2]
[374160046,1753233038409,-460.0,0.00016787,2]
[374160047,1753233038418,-460.0,0.00016787,2]
[374160048,1753233038427,-460.0,0.00016787,2]
[374160049,1753233038438,-460.0,0.00016787,2]
[374160050,1753233038447,-461.77760219,0.00016787,2]
[374160051,1753233038456,-460.0,0.00016787,2]
[374160052,1753233038466,-460.0,0.00016787,2]
[374160053,1753233038475,-460.0,0.00016787,2]
[374160054,1753233038484,-460.0,0.00016787,2]
[374160055,1753233038494,-500.0,0.00016787,2]
[374160056,1753233038503,-460.0,0.00016787,2]
[374160057,1753233038513,-460.0,0.00016787,2]
[374160058,1753233038524,-460.0,0.00016787,2]